Cogmind - Beta 16 @@@ ROGUE MODE // 2026.01.06 @ 21:27:48 Player: Skergy Result: Destroyed by S-10 Pest with Light Assault Rifle Performance ------------- Evolutions (0) 0 Regions Visited (4) 800 Robots Destroyed (0) 0 Value Destroyed (0) 0 Prototype IDs (0) 0 Alien Tech Used (0) 0 Bonus (-19) -19 TOTAL SCORE: 781 Bonus ------- Friendly Fire -19 Cogmind --------- Core Integrity 0/250 Matter 246/300 Energy 100/100 System Corruption 0% Temperature Cool (0) Movement Walking (120) Location -9/Mines Parts ------- > --- POWER (1) -------- (None) > --- PROPULSION (2) --- Aluminum Leg Aluminum Leg > --- UTILITY (2) ------ Small Storage Unit Signal Interpreter > --- WEAPON (2) ------- (None) > --- INVENTORY (8) ---- Ion Engine Small Battery (100) ECM Suite Small Laser Small Laser Assault Rifle Peak State ------------ > --- POWER ------------ Ion Engine > --- PROPULSION ------- Light Treads Light Treads > --- UTILITY ---------- Small Storage Unit ECM Suite > --- WEAPON ----------- Small Laser Small Laser > --- INVENTORY -------- Ion Engine Aluminum Leg Aluminum Leg Assault Rifle Grenade Launcher [Rating: 7] Favorites ----------- Power Ion Engine Engine Ion Engine Propulsion Light Treads Treads Light Treads Leg Aluminum Leg Utility Small Storage Unit Device ECM Suite Storage Small Storage Unit Processor Signal Interpreter Weapon Grenade Launcher Energy Gun Small Laser Ballistic Cannon Light Cannon Launcher Grenade Launcher Build | -11 -10 -10 -10 -9 ------- Run | Yrd Mat Min Exi Min Slots Evolved . | . . . . . Power . | . . . . . Propulsion . | . . . . . Utility . | . . . . . Weapon . | . . . . . Parts Attached 12 | 6 2 1 1 2 Power 1 | 1 . . . . Engine 1 | 1 . . . . Core . | . . . . . Reactor . | . . . . . Propulsion 4 | 2 . . . 2 Treads 2 | 2 . . . . Leg 2 | . . . . 2 Wheel . | . . . . . Hover . | . . . . . Flight . | . . . . . Utility 3 | 1 1 1 . . Device 1 | . 1 . . . Storage 1 | 1 . . . . Processor 1 | . . 1 . . Hackware . | . . . . . Protection . | . . . . . Artifact . | . . . . . Weapon 4 | 2 1 . 1 . Energy Gun 2 | 2 . . . . Energy Cannon . | . . . . . Ballistic Gun . | . . . . . Ballistic Cannon 1 | . . . 1 . Launcher 1 | . 1 . . . Special Weapon . | . . . . . Impact Weapon . | . . . . . Slashing Weapon . | . . . . . Piercing Weapon . | . . . . . Special Melee Weapon . | . . . . . Unidentified Prototypes . | . . . . . Parts Lost 5 | . . . . 5 Power 1 | . . . . 1 Propulsion 2 | . . . . 2 Utility . | . . . . . Weapon 2 | . . . . 2 Highest Loss Streak 5 | . . . . 5 To Critical Strikes . | . . . . . Average Backups 7 | 2 5 6 8 7 Power . | . 1 1 1 1 Propulsion 1 | 1 2 2 2 1 Utility 1 | . . 1 2 2 Weapon 2 | . 1 2 3 3 Tool/Special . | . . . . . Unused Backups 3 | . . . . 3 Power 1 | . . . . 1 Propulsion . | . . . . . Utility 1 | . . . . 1 Weapon 1 | . . . . 1 Tool/Special . | . . . . . Average Slot Usage (%) 98 | . 93 100 100 94 Engine 13 | . 14 14 14 12 Treads 27 | . 28 28 28 25 Device 2 | . 7 9 . . Storage 14 | . 14 14 14 14 Processor 10 | . . 4 14 14 Energy Gun 11 | . 27 14 9 . Ballistic Cannon 3 | . . . 4 12 Launcher 12 | . 1 14 14 12 Peak Build Rating 7 | 6 7 7 7 7 Average Rating 6 | 4 6 7 7 6 On Entrance 5 | . 6 7 7 7 Avg Prop Armor Cover (%) 21 | . . . . 21 Naked Turns . | . . . . . Heaviest Build 16 | 12 16 16 16 16 Greatest Support 40 | 40 40 40 40 40 Greatest Overweight (x) . | . . . . . Average Overweight (x) . | . . . . . Largest Inventory Capacity 8 | 8 8 8 8 8 Average Capacity 7 | 7 8 8 8 8 Most Carried 8 | 4 6 8 8 8 Average Carried 7 | 2 5 6 8 7 Final Capacity 8 | 8 8 8 8 8 Final Carried 8 | 4 6 8 8 6 Class Distribution -------------------- 100% | Mutant Dominant Class ---------------- Mutant | -10/Materials Mutant | -10/Mines Mutant | -10/Exiles Mutant | -9/Mines Resources | -11 -10 -10 -10 -9 ----------- Run | Yrd Mat Min Exi Min Matter Collected 389 | 163 . 124 100 2 Remotely . | . . . . . Salvage Created 20 | . . . . 20 Parts . | . . . . . Haulers Intercepted . | . . . . . Recyclers Shooed . | . . . . . Parts Field Recycled . | . . . . . Retrieved Matter . | . . . . . Parts Self-Destructed . | . . . . . Prevented . | . . . . . Parts Restored . | . . . . . Kills | -11 -10 -10 -10 -9 ------- Run | Yrd Mat Min Exi Min Combat Hostiles Destroyed 5 | . . . . 5 AOE 5 | . . . . 5 Classes Destroyed 1 | . . . . 1 Assembled 5 | . . . . 5 Best Kill Streak 5 | . . . . 5 Combat Bots Only 5 | . . . . 5 Max Kills in Single Turn 3 | . . . . 3 Gunslinging . | . . . . . Exploded 3 | . . . . 3 Melee . | . . . . . Uniques/NPCs Destroyed . | . . . . . Combat | -11 -10 -10 -10 -9 -------- Run | Yrd Mat Min Exi Min Hostile Shots Fired 65 | . 28 . . 37 Missed 18 | . 8 . . 10 Hits 47 | . 20 . . 27 Melee 2 | . . . . 2 Projectile 45 | . 20 . . 25 AOE 11 | . . . . 11 Part Disruptions 1 | . . . . 1 Damage Taken 925 | . 220 . . 705 Core 254 | . 11 . . 243 Absorbed by Shields . | . . . . . Core Remaining (%) 100 | 100 . . . . Volleys Fired 33 | . 1 . 30 2 Largest 1 | . 1 . 1 1 Hottest 30 | . 30 . 30 30 Shots Fired 33 | . 1 . 30 2 Gun . | . . . . . Cannon 30 | . . . 30 . Launcher 3 | . 1 . . 2 Special . | . . . . . Kinetic 30 | . . . 30 . Thermal . | . . . . . Explosive 3 | . 1 . . 2 Electromagnetic . | . . . . . Robot Hit Streak 1 | . . . . 1 Robot Miss Streak 1 | . . . . 1 Penetration Max . | . . . . . Secondary Targets . | . . . . . Shots Hit Robots 1 | . . . . 1 Core Hits 14 | . . . . 14 Critical Kills . | . . . . . Critical Parts Destroyed . | . . . . . Critical Strikes . | . . . . . Melee Attacks . | . . . . . Impact . | . . . . . Slashing . | . . . . . Piercing . | . . . . . Sneak Attacks . | . . . . . Combat Hostiles . | . . . . . Follow-up Attacks . | . . . . . Damage Inflicted 348 | . 7 . . 341 Guns . | . . . . . Cannons . | . . . . . Explosions 341 | . . . . 341 Melee . | . . . . . Ramming 7 | . 7 . . . Kinetic . | . . . . . Thermal . | . . . . . Explosive 341 | . . . . 341 Electromagnetic . | . . . . . Impact . | . . . . . Slashing . | . . . . . Piercing . | . . . . . Highest Corruption . | . . . . . Average Corruption . | . . . . . Corruption Purged . | . . . . . Corruption Blocked . | . . . . . Overload Shots . | . . . . . Overflow Damage . | . . . . . Projectiles . | . . . . . Explosions . | . . . . . Melee . | . . . . . Knockbacks . | . . . . . Impact . | . . . . . Kinetic . | . . . . . Secondary . | . . . . . Self-Inflicted Damage 16 | . . . . 16 Shots 1 | . . . . 1 Rammed 1 | . 1 . . . Targets Rammed 1 | . 1 . . . Kicked . | . . . . . Crushed . | . . . . . Highest Temperature 15 | . . . . 15 Average Temperature 6 | . . . . 6 Received Heat Transfer 180 | . 120 . . 60 Siege Activations . | . . . . . Martial Activations . | . . . . . Shielding Activations . | . . . . . Robots Disrupted . | . . . . . Combat Hostiles . | . . . . . Robots Corrupted . | . . . . . Combat Hostiles . | . . . . . Parts Fried . | . . . . . Impact Corruptions . | . . . . . Robots Melted . | . . . . . Combat Hostiles . | . . . . . Parts Melted . | . . . . . Heat Transferred . | . . . . . Parts Sabotaged . | . . . . . Parts Stolen . | . . . . . Parts Stripped . | . . . . . Power Chain Reactions . | . . . . . Alert | -11 -10 -10 -10 -9 ------- Run | Yrd Mat Min Exi Min Maximum Alert Level . | . . . . . Low Security (%) 100 | 100 100 100 . 100 Level 1 . | . . . . . Level 2 . | . . . . . Level 3 . | . . . . . Level 4 . | . . . . . Level 5 . | . . . . . High Security . | . . . . . Max Security . | . . . . . Peak Influence 15 | . 15 1 . 12 Initial 1 | . . 1 . . Average . | . 1 . . . Influence Increases 32 | . 20 . . 12 Successful Hack 16 | . 16 . . . Destroy Structure 16 | . 4 . . 12 Influence Decreases 32 | . 15 5 . 12 Entered New Map 4 | . . 4 . . Time Decay 16 | . 15 1 . . Lost Part 12 | . . . . 12 Squads Dispatched 2 | . 2 . . . Investigation . | . . . . . Extermination . | . . . . . Reinforcement 2 | . 2 . . . Assault . | . . . . . Garrison . | . . . . . Intercept . | . . . . . Searches Triggered . | . . . . . Construction Impeded . | . . . . . Haulers Reinforced . | . . . . . Active Scanning Responses . | . . . . . Cargo Convoy Interrupts . | . . . . . Stealth | -11 -10 -10 -10 -9 --------- Run | Yrd Mat Min Exi Min Distress Signals 1 | . 1 . . . Communications Jammed . | . . . . . Distress Signals . | . . . . . Times Spotted 33 | . 8 . . 25 Peak Tracking Total 17 | . 3 . . 17 Tactical Retreats 3 | . 3 . . . ECM-based Alert Blocks 4 | . 4 . . . Traps | -11 -10 -10 -10 -9 ------- Run | Yrd Mat Min Exi Min Traps Triggered . | . . . . . Indirectly . | . . . . . Trap Hack Attempts . | . . . . . Triggered . | . . . . . Disarmed . | . . . . . Reprogrammed . | . . . . . Reused . | . . . . . Traps Extracted . | . . . . . Installed . | . . . . . Triggered . | . . . . . Machines | -11 -10 -10 -10 -9 ---------- Run | Yrd Mat Min Exi Min Machines Disabled . | . . . . . Max in Single Turn . | . . . . . Machines Repaired . | . . . . . Machines Dismantled . | . . . . . Machines Sabotaged . | . . . . . Overloaded Fab Kills . | . . . . . Hacking | -11 -10 -10 -10 -9 --------- Run | Yrd Mat Min Exi Min Machines Accessed 7 | . 3 . 4 . Terminals 3 | . 3 . . . Fabricators . | . . . . . Repair Stations . | . . . . . Recycling Units . | . . . . . Scanalyzers . | . . . . . Garrison Access . | . . . . . Total Hacks 11 | . 7 . 4 . Successful 7 | . 3 . 4 . Failed 4 | . 4 . . . Catastrophic . | . . . . . Database Lockouts . | . . . . . Manual 5 | . 5 . . . Terminals 7 | . 7 . . . Fabricators . | . . . . . Repair Stations . | . . . . . Recycling Units . | . . . . . Scanalyzers . | . . . . . Garrison Access . | . . . . . Terminal Hacks 5 | . 1 . 4 . Record 4 | . . . 4 . Branch Access Points 1 | . 1 . . . Fabricator Hacks . | . . . . . Repair Station Hacks . | . . . . . Recycling Unit Hacks . | . . . . . Scanalyzer . | . . . . . Garrison Access Hacks . | . . . . . Unauthorized Hacks 2 | . 2 . . . Terminals 2 | . 2 . . . Botnet 2 | . 2 . . . Fabricators . | . . . . . Repair Stations . | . . . . . Recycling Units . | . . . . . Scanalyzers . | . . . . . Garrison Access . | . . . . . Data Cores Recovered . | . . . . . Used . | . . . . . Hacking Detections 2 | . 2 . . . Full Trace Events . | . . . . . Feedback Events . | . . . . . Feedback Blocked . | . . . . . Robot Schematics Acquired . | . . . . . Robots Built . | . . . . . Authchips . | . . . . . Time . | . . . . . Total Robot Build Rating . | . . . . . Part Schematics Acquired . | . . . . . Parts Built . | . . . . . Authchips . | . . . . . Time . | . . . . . Total Part Build Rating . | . . . . . Part Studies Acquired . | . . . . . Parts Repaired . | . . . . . Time . | . . . . . Parts Recycled . | . . . . . Recycled Matter . | . . . . . Retrieved Matter . | . . . . . Retrieved Components . | . . . . . Parts Scanalyzed . | . . . . . Part Schematics Acquired . | . . . . . Parts Damaged . | . . . . . Bothacking | -11 -10 -10 -10 -9 ------------ Run | Yrd Mat Min Exi Min Used RIF Installer . | . . . . . Robots Hacked . | . . . . . Non-combat . | . . . . . Combat . | . . . . . Robot Hacks Applied . | . . . . . Relay Couplers Released . | . . . . . Fabnet Peak Effective % . | . . . . . Robots Rewired . | . . . . . Allies Hacked . | . . . . . Hacks Repelled . | . . . . . Allies | -11 -10 -10 -10 -9 -------- Run | Yrd Mat Min Exi Min Total Allies . | . . . . . Largest Group . | . . . . . Highest-Rated Group . | . . . . . Highest-Rated Ally . | . . . . . Total Orders . | . . . . . Ally Attacks . | . . . . . Total Damage . | . . . . . Kills . | . . . . . Allies Corrupted . | . . . . . Allies Melted . | . . . . . Intel | -11 -10 -10 -10 -9 ------- Run | Yrd Mat Min Exi Min Active Infowar (turns) 358 | . 142 216 . . ECM 358 | . 142 216 . . Robot Analysis Total . | . . . . . Derelict Logs Recovered 2 | . . 2 . . Drone Launches . | . . . . . Drone Recoveries . | . . . . . Exploration | -11 -10 -10 -10 -9 ------------- Run | Yrd Mat Min Exi Min Turns Passed 2310 | 73 267 323 1408 239 Spaces Moved 1327 | 41 162 200 842 82 Core 4 | 4 . . . . Treads 1305 | 37 162 200 842 64 Legs 18 | . . . . 18 Wheels . | . . . . . Hover . | . . . . . Flight . | . . . . . Fastest Speed 50 | 50 160 160 160 120 Average Speed 159 | 149 160 160 160 151 Slowest Speed 160 | 160 160 160 160 160 Overloaded Moves . | . . . . . Propulsion Burnouts . | . . . . . Robots Hopped . | . . . . . Potential Cave-ins . | . . . . . Cave-ins Triggered . | . . . . . Exploration Rate (%) 42 | 4 33 45 95 36 Regions Visited 4 Branch Regions 3 Pre-discovered Areas . | . . . . . Known Exits Taken 3 | . 1 1 1 . Unknown Exits Taken 1 | 1 . . . . Scrap Searched 1 | . . 1 . . Spaces Dug 4 | . 4 . . . Terrain Destroyed 19 | . 4 . . 15 Melee . | . . . . . Projectile . | . . . . . AOE 19 | . 4 . . 15 Terrain Rammed . | . . . . . Walls Destroyed . | . . . . . Machines Disabled . | . . . . . Actions | -11 -10 -10 -10 -9 --------- Run | Yrd Mat Min Exi Min Total 1487 | 50 167 203 872 195 Wait 110 | . . 1 . 109 Move 1323 | 40 161 199 841 82 Hop . | . . . . . Pick Up 8 | 4 2 2 . . Fast Attach 7 | 6 1 . . . Attach 2 | . . . . 2 Detach . | . . . . . Swap 3 | . 1 1 1 . Drop . | . . . . . Fire 33 | . 1 . 30 2 Melee . | . . . . . Ram . | . . . . . Kick . | . . . . . Crush 1 | . 1 . . . Escape Stasis . | . . . . . Rewire . | . . . . . Trap . | . . . . . Miscellaneous . | . . . . . Route ------- -11/Scrapyard -10/Materials (discovered 2 exits: *Min x2) -10/Mines (discovered 2 exits: *Mat / *Exi) -10/Exiles (discovered 2 exits: *Min x2) -9/Mines History --------- Turn | Location | Event 9 | -11/Scrapyard | Discovered new exit (range 15) 74 | -11/Scrapyard | Entered Materials 315 | -10/Materials | Build established: Mutant 318 | -10/Materials | Identified exit to Mines 341 | -10/Materials | Entered Mines 386 | -10/Mines | Met a Derelict bent on vengeance 391 | -10/Mines | Learned Materials terminal intel 471 | -10/Mines | Learned Materials terminal intel 509 | -10/Mines | Deemed a non-threat by the Exiles lab entrance 509 | -10/Mines | Discovered new exit (range 5) 553 | -10/Mines | Discovered new exit (range 11) 570 | -10/Mines | Identified exit to Materials 663 | -10/Mines | Identified exit to Exiles 664 | -10/Mines | Entered Exiles 664 | -10/Exiles | Found Exiles lab abandoned 695 | -10/Exiles | Discovered new exit (range 15) 714 | -10/Exiles | Identified exit to Mines 1525 | -10/Exiles | Discovered exit to Mines (range 10) 2072 | -10/Exiles | Entered Mines 2243 | -9/Mines | Assembled infested the area 2248 | -9/Mines | Assisted by a Guerilla fighting off Assembled 2270 | -9/Mines | Received a Rocket Launcher from a helpful Derelict 2287 | -9/Mines | Core integrity fell below 50% 2292 | -9/Mines | Core integrity fell below 20% 2311 | -9/Mines | Destroyed by S-10 Pest with Light Assault Rifle Last Messages --------------- 02293_ K-01 Serf collects debris. 02294_ The unstable cave ceiling collapses. 02295_ U-05 Engineer lays Concrete. 02295_ as-17273 sneak attacks. 02295_ as-97522 sneak attacks. 02295_ U-05 Engineer destroyed. 02295_ as-43045 destroyed. 02297_ The unstable cave ceiling collapses. 02297_ as-81479 sneak attacks. 02297_ R-06 Scavenger destroyed. 02297_ K-01 Serf collects debris. 02298_ as-67024 destroyed. 02298_ as-17273 destroyed. 02298_ as-03503 destroyed. 02298_ as-97522 destroyed. 02299_ The unstable cave ceiling collapses. 02300_ D-53 Grenadier knocked back. 02301_ K-01 Serf collects debris. 02302_ D-53 Grenadier destroyed. 02304_ K-01 Serf collects debris. Map ----- +----------------------------------------------------+ | ??????????????????## ##???## # | | ??????????????????# ##???## # | | ??????????????????## #????# ## | | ???????????#??????# % #????## ###? | | ???????????# #### % ##?????## #??? | | ???????????# ###???????# #??? | | ???????????# ## #?????????# #??? | | ???????????# ??## #??##????# #??? | | ???????????# ?# ?? ###??# #??? | | ???????????# # # ## ? #??? | | ????????????# ? #??? | | ????????????#### #????####??? | | ???????????????## ####??????????? | | ????????? ??????#### k ##?????????????? | | ????????# ???????### ##??????????????? | | ????????? ########## ##???????????????? | | ??????????""" ## ##???#???????????? | | ??????????""" % ## ##??????????? | | ??????????????##### #??????????? | | ??????????????????### s #??????????? | | ????????????????????## s #??????????? | | ?????????????????????#ss ## #??????????? | | ?????????????????????# ##?# ##??????????? | | ?????????????????????## ##??# ## #???????????? | | ??????????????????????# #???###??#???????????? | | ??????????????????????#@ #????????????????????? | | ??????????????????????## #????????????????????? | | ???????????????????????? #???????????????????? | | ???????????????????????? #???????????????????? | | ???????????????????????? ##???????????????????? | | ???????????????????????? #????????????????????? | | ???????????????????????? #????????????????????? | | ????????????????????????? #????????????????????? | | ????????????????????????? #????????????????????? | | ?????????????????????????##????????????????????? | | ???????????????????????????????????????????????? | | ???????????????????????????????????????????????? | | ???????????????????????????????????????????????? | | ???????????????????????????????????????????????? | | ???????????????????????????????????????????????? | | ???????????????????????????????????????????????? | | ???????????????????????????????????????????????? | | ???????????????????????????????????????????????? | | ???????????????????????????????????????????????? | | ???????????????????????????????????????????????? | | ???????????????????????????????????????????????? | | ???????????????????????????????????????????????? | | ???????????????????????????????????????????????? | | ???????????????????????????????????????????????? | | ???????????????????????????????????????????????? | +----------------------------------------------------+ Best States ------------- Heat Dissipation 25 Energy Generation 10 Energy Capacity 250 Matter Stores 300 Matter Capacity 300 Sight Range 16 Terrain Scan Density 10 ECM Strength 1 Evasion (%) 55 Recoil Reduction 2 Item Schematics ----------------- None Robot Schematics ------------------ None Fabricated ------------ Nothing Repaired ---------- Nothing Studied --------- None Alien Tech Used ----------------- None Achievements -------------- None Challenges ------------ None Game ------ Seed SmartbombArmoredWeb Manual? 0 Play Time 00:20:02 Cumulative 101.2 hours Start 2026.01.06 @ 21:07:23 End 2026.01.06 @ 21:27:48 Sessions 1 Manual Loads 0 Difficulty Rogue Special Mode None Game No. 117 Rogue 117 Adventurer 0 Explorer 0 Win Type - Total 3 Types 3/0/0/0/0/0/0/0/0/0 Lore% 62 Gallery% 49 Achievement% 34 Wizard Run 0 Options --------- Layout 1 ASCII 0 Keyboard 1 Movement Vi Keybinds 0 Fullscreen 2 Font 24/Terminus Map View 50x35 Zoom Use 0% Tactical HUD 1 Map Filters NONE Filters NONE Steam 1 RUN: 6928e43a-c83e-4c8c-b040-a0e33ef2676b